[Event "Swedish Chess Championship 2021: Sverigemastarklassen"]
[Site "Scandic Helsingborg Nord, Florettgatan 41, Helsingborg, Sweden"]
[Date "2021.07.04"]
[Round "2.1"]
[White "Blomqvist, Erik"]
[Black "Hector, Jonny"]
[Result "1/2-1/2"]
[TimeControl "90 minutes for 40 moves + 30 minutes for the rest of the game + 30 seconds per move from move one."]
[WhiteTitle "GM"]
[BlackTitle "GM"]
[WhiteFideId "1709437"]
[BlackFideId "1700090"]
[WhiteElo "2535"]
[BlackElo "2479"]

1. e4 {[%clk 01:30:54]} {[%emt 00:00:05]} e5 {[%clk 01:30:48]} {[%emt
00:00:11]} 2. Nf3 {[%clk 01:31:05]} {[%emt 00:00:20]} Nc6 {[%clk 01:31:09]}
{[%emt 00:00:09]} 3. Bc4 {[%clk 01:31:15]} {[%emt 00:00:20]} Nf6 {[%clk
01:30:47]} {[%emt 00:00:50]} 4. Ng5 {[%clk 01:31:22]} {[%emt 00:00:24]} d5
{[%clk 01:28:53]} {[%emt 00:02:24]} 5. exd5 {[%clk 01:30:50]} {[%emt 00:01:04]}
Na5 {[%clk 01:29:07]} {[%emt 00:00:15]} 6. Bb5+ {[%clk 01:31:14]} {[%emt
00:00:07]} c6 {[%clk 01:29:15]} {[%emt 00:00:21]} 7. dxc6 {[%clk 01:31:34]}
{[%emt 00:00:11]} bxc6 {[%clk 01:29:40]} {[%emt 00:00:04]} 8. Bd3 {[%clk
01:31:44]} {[%emt 00:00:20]} Ng4 {[%clk 01:27:12]} {[%emt 00:02:57]} 9. Ne4
{[%clk 01:31:27]} {[%emt 00:00:48]} f5 {[%clk 01:26:49]} {[%emt 00:00:52]} 10.
Be2 {[%clk 01:31:26]} {[%emt 00:00:32]} h5 {[%clk 01:25:08]} {[%emt 00:02:10]}
11. h3 {[%clk 01:31:37]} {[%emt 00:00:20]} fxe4 {[%clk 01:23:48]} {[%emt
00:01:50]} 12. hxg4 {[%clk 01:31:54]} {[%emt 00:00:14]} Bc5 {[%clk 01:22:38]}
{[%emt 00:01:39]} 13. Nc3 {[%clk 01:31:34]} {[%emt 00:00:51]} Qd4 {[%clk
01:19:48]} {[%emt 00:03:19]} 14. O-O {[%clk 01:31:29]} {[%emt 00:00:35]} O-O
{[%clk 01:15:37]} {[%emt 00:04:41]} 15. Qe1 {[%clk 01:31:39]} {[%emt 00:00:20]}
hxg4 {[%clk 01:12:45]} {[%emt 00:03:22]} 16. d3 {[%clk 01:31:47]} {[%emt
00:00:23]} exd3 {[%clk 01:03:40]} {[%emt 00:09:35]} 17. Bxd3 {[%clk 01:31:46]}
{[%emt 00:00:31]} Rxf2 {[%clk 01:03:33]} {[%emt 00:00:36]} 18. Qxf2 {[%clk
01:30:50]} {[%emt 00:01:25]} Qxf2+ {[%clk 01:03:16]} {[%emt 00:00:47]} 19. Rxf2
{[%clk 01:31:10]} {[%emt 00:00:11]} g3 {[%clk 01:03:35]} {[%emt 00:00:11]} 20.
Ne4 {[%clk 01:31:20]} {[%emt 00:00:20]} Bxf2+ {[%clk 01:00:17]} {[%emt
00:03:48]} 21. Nxf2 {[%clk 01:31:22]} {[%emt 00:00:27]} gxf2+ {[%clk 01:00:39]}
{[%emt 00:00:09]} 22. Kxf2 {[%clk 01:31:22]} {[%emt 00:00:30]} Be6 {[%clk
00:50:00]} {[%emt 00:11:08]} 23. b3 {[%clk 01:28:00]} {[%emt 00:03:53]} Rf8+
{[%clk 00:37:01]} {[%emt 00:13:28]} 24. Kg3 {[%clk 01:11:34]} {[%emt 00:16:57]}
Bf5 {[%clk 00:32:16]} {[%emt 00:05:14]} 25. Ba3 {[%clk 01:09:12]} {[%emt
00:02:53]} Rf6 {[%clk 00:31:55]} {[%emt 00:00:50]} 26. Bxf5 {[%clk 01:08:46]}
{[%emt 00:00:57]} Rxf5 {[%clk 00:32:18]} {[%emt 00:00:07]} 27. Rd1 {[%clk
01:08:02]} {[%emt 00:01:14]} Nb7 {[%clk 00:30:45]} {[%emt 00:02:02]} 28. Rd7
{[%clk 01:07:30]} {[%emt 00:01:02]} Rf7 {[%clk 00:31:06]} {[%emt 00:00:08]} 29.
Be7 {[%clk 01:00:34]} {[%emt 00:07:26]} Kh7 {[%clk 00:27:59]} {[%emt 00:03:37]}
30. Rxb7 {[%clk 01:00:52]} {[%emt 00:00:12]} e4 {[%clk 00:28:09]} {[%emt
00:00:19]} 31. Rxa7 {[%clk 01:00:49]} {[%emt 00:00:33]} e3 {[%clk 00:28:32]}
{[%emt 00:00:07]} 32. Ra4 {[%clk 01:00:41]} {[%emt 00:00:39]} Rxe7 {[%clk
00:28:54]} {[%emt 00:00:06]} 33. Rh4+ {[%clk 01:01:02]} {[%emt 00:00:10]} Kg6
{[%clk 00:26:49]} {[%emt 00:02:34]} 34. Rh1 {[%clk 00:59:12]} {[%emt 00:02:21]}
Rf7 {[%clk 00:18:34]} {[%emt 00:08:45]} 35. Re1 {[%clk 00:55:24]} {[%emt
00:04:17]} Rf2 {[%clk 00:18:55]} {[%emt 00:00:09]} 36. Rxe3 {[%clk 00:53:15]}
{[%emt 00:02:40]} Rxc2 {[%clk 00:19:18]} {[%emt 00:00:07]} 37. a4 {[%clk
00:52:55]} {[%emt 00:00:51]} Kf5 {[%clk 00:07:50]} {[%emt 00:11:56]} 38. Kf3
{[%clk 00:50:39]} {[%emt 00:02:46]} c5 {[%clk 00:07:38]} {[%emt 00:00:42]} 39.
g3 {[%clk 00:41:32]} {[%emt 00:09:38]} g6 {[%clk 00:05:34]} {[%emt 00:02:33]}
40. g4+ {[%clk 00:24:46]} {[%emt 00:17:17]} Kg5 {[%clk 00:04:46]} {[%emt
00:01:17]} 41. a5 {[%clk 00:11:29]} {[%emt 00:13:48]} Kf6 {[%clk 00:26:15]}
{[%emt 00:08:59]} 42. Re2 {[%clk 00:26:00]} {[%emt 00:15:59]} Rc3+ {[%clk
00:24:59]} {[%emt 00:01:46]} 43. Kf4 {[%clk 00:25:39]} {[%emt 00:00:52]} g5+
{[%clk 00:12:07]} {[%emt 00:13:21]} 44. Ke4 {[%clk 00:26:07]} {[%emt 00:00:03]}
Rxb3 {[%clk 00:12:24]} {[%emt 00:00:14]} 45. Ra2 {[%clk 00:26:14]} {[%emt
00:00:22]} Rb4+ {[%clk 00:10:06]} {[%emt 00:02:47]} 46. Ke3 {[%clk 00:21:04]}
{[%emt 00:05:40]} Ke5 {[%clk 00:06:10]} {[%emt 00:04:26]} 47. a6 {[%clk
00:20:43]} {[%emt 00:00:53]} Rb3+ {[%clk 00:06:26]} {[%emt 00:00:13]} 48. Kd2
{[%clk 00:16:30]} {[%emt 00:04:43]} Rh3 {[%clk 00:05:03]} {[%emt 00:01:53]} 49.
Ra4 {[%clk 00:11:59]} {[%emt 00:05:02]} Rh8 {[%clk 00:04:29]} {[%emt 00:01:02]}
50. a7 {[%clk 00:09:16]} {[%emt 00:03:15]} Ra8 {[%clk 00:04:52]} {[%emt
00:00:06]} 51. Kd3 {[%clk 00:07:21]} {[%emt 00:02:25]} Kd5 {[%clk 00:05:02]}
{[%emt 00:00:20]} 52. Ra5 {[%clk 00:07:43]} {[%emt 00:00:09]} Ke5 {[%clk
00:04:09]} {[%emt 00:01:22]} 53. Rxc5+ {[%clk 00:05:35]} {[%emt 00:02:38]} Kf4
{[%clk 00:04:30]} {[%emt 00:00:09]} 54. Rc4+ {[%clk 00:05:53]} {[%emt
00:00:13]} Kg3 {[%clk 00:04:43]} {[%emt 00:00:17]} 55. Ra4 {[%clk 00:06:14]}
{[%emt 00:00:09]} Kf3 {[%clk 00:04:32]} {[%emt 00:00:40]} 56. Kd2 {[%clk
00:06:11]} {[%emt 00:00:33]} Rd8+ {[%clk 00:03:46]} {[%emt 00:01:16]} 57. Ke1
{[%clk 00:06:09]} {[%emt 00:00:32]} Re8+ {[%clk 00:03:44]} {[%emt 00:00:32]} 58.
Kf1 {[%clk 00:06:33]} {[%emt 00:00:07]} Ra8 {[%clk 00:04:03]} {[%emt 00:00:11]}
59. Kg1 {[%clk 00:05:56]} {[%emt 00:01:06]} Kg3 {[%clk 00:04:26]} {[%emt
00:00:08]} 60. Kf1 {[%clk 00:06:21]} {[%emt 00:00:06]} Kf3 {[%clk 00:04:46]}
{[%emt 00:00:09]} 61. Ke1 {[%clk 00:06:46]} {[%emt 00:00:05]} Re8+ {[%clk
00:03:13]} {[%emt 00:02:03]} 62. Kd2 {[%clk 00:06:52]} {[%emt 00:00:24]} Rd8+
{[%clk 00:03:29]} {[%emt 00:00:14]} 63. Kc3 {[%clk 00:07:15]} {[%emt 00:00:07]}
Ra8 {[%clk 00:03:40]} {[%emt 00:00:19]} 64. Kd3 {[%clk 00:06:37]} {[%emt
00:01:09]} Kg3 {[%clk 00:02:16]} {[%emt 00:01:53]} 65. Ke3 {[%clk 00:06:12]}
{[%emt 00:00:56]} Kh3 {[%clk 00:02:43]} {[%emt 00:00:04]} 66. Kf3 {[%clk
00:05:35]} {[%emt 00:01:07]} Rf8+ {[%clk 00:03:08]} {[%emt 00:00:04]} 67. Ke3
{[%clk 00:04:40]} {[%emt 00:01:26]} Ra8 {[%clk 00:03:30]} {[%emt 00:00:08]} 68.
Ke4 {[%clk 00:02:13]} {[%emt 00:02:56]} Kxg4 {[%clk 00:03:45]} {[%emt
00:00:16]} 69. Kd5+ {[%clk 00:02:41]} {[%emt 00:00:03]} Kf3 {[%clk 00:03:52]}
{[%emt 00:00:22]} 70. Kc6 {[%clk 00:03:07]} {[%emt 00:00:04]} g4 {[%clk
00:04:07]} {[%emt 00:00:14]} 71. Kb7 {[%clk 00:03:32]} {[%emt 00:00:06]} Rxa7+
{[%clk 00:04:28]} {[%emt 00:00:09]} 72. Kxa7 {[%clk 00:03:59]} {[%emt
00:00:04]} g3 {[%clk 00:04:49]} {[%emt 00:00:07]} 73. Ra3+ {[%clk 00:04:25]}
{[%emt 00:00:04]} Kf2 {[%clk 00:05:13]} {[%emt 00:00:06]} 74. Rxg3 {[%clk
00:04:52]} {[%emt 00:00:04]} Kxg3 {[%emt 00:00:08]} 1/2-1/2

[Event "Swedish Chess Championship 2021: Sverigemastarklassen"]
[Site "Scandic Helsingborg Nord, Florettgatan 41, Helsingborg, Sweden"]
[Date "2021.07.04"]
[Round "2.2"]
[White "Wiedenkeller, Michael"]
[Black "Cramling, Pia"]
[Result "0-1"]
[TimeControl "90 minutes for 40 moves + 30 minutes for the rest of the game + 30 seconds per move from move one."]
[WhiteTitle "IM"]
[BlackTitle "GM"]
[WhiteFideId "1700146"]
[BlackFideId "1700030"]
[WhiteElo "2445"]
[BlackElo "2459"]

1. d4 {[%clk 01:30:32]} {[%emt 00:00:17]} Nf6 {[%clk 01:30:51]} {[%emt
00:00:10]} 2. c4 {[%clk 01:30:20]} {[%emt 00:00:39]} e6 {[%clk 01:30:02]}
{[%emt 00:01:21]} 3. Nc3 {[%clk 01:30:19]} {[%emt 00:00:31]} Bb4 {[%clk
01:30:20]} {[%emt 00:00:12]} 4. Qc2 {[%clk 01:30:07]} {[%emt 00:00:41]} b6
{[%clk 01:26:42]} {[%emt 00:04:09]} 5. e4 {[%clk 08:16:41]} {[%emt 00:03:56]}
c5 {[%clk 01:26:14]} {[%emt 00:00:58]} 6. d5 {[%clk 01:26:14]} {[%emt
00:00:57]} Qe7 {[%clk 01:25:59]} {[%emt 00:00:43]} 7. Nge2 {[%clk 01:23:34]}
{[%emt 00:03:10]} exd5 {[%clk 01:23:14]} {[%emt 00:03:15]} 8. exd5 {[%clk
01:23:24]} {[%emt 00:00:41]} d6 {[%clk 01:19:27]} {[%emt 00:04:16]} 9. Bd2
{[%clk 01:21:47]} {[%emt 00:02:08]} O-O {[%clk 01:18:13]} {[%emt 00:01:43]} 10.
f3 {[%clk 01:19:55]} {[%emt 00:02:22]} Nbd7 {[%clk 01:13:15]} {[%emt 00:05:28]}
11. O-O-O {[%clk 01:10:41]} {[%emt 00:09:44]} a6 {[%clk 01:04:04]} {[%emt
00:09:41]} 12. Ng3 {[%clk 01:03:44]} {[%emt 00:07:27]} Qd8 {[%clk 00:56:05]}
{[%emt 00:08:30]} 13. Nf5 {[%clk 00:46:22]} {[%emt 00:17:51]} Ne5 {[%clk
00:54:08]} {[%emt 00:02:26]} 14. f4 {[%clk 00:42:39]} {[%emt 00:04:13]} Neg4
{[%clk 00:43:18]} {[%emt 00:11:20]} 15. Re1 {[%clk 00:38:18]} {[%emt 00:04:51]}
Bxf5 {[%clk 00:31:43]} {[%emt 00:12:06]} 16. Qxf5 {[%clk 00:38:13]} {[%emt
00:00:34]} Re8 {[%clk 00:26:05]} {[%emt 00:06:09]} 17. Qc2 {[%clk 00:26:17]}
{[%emt 00:12:25]} Rxe1+ {[%clk 00:21:50]} {[%emt 00:04:46]} 18. Bxe1 {[%clk
00:26:39]} {[%emt 00:00:08]} b5 {[%clk 00:20:31]} {[%emt 00:01:49]} 19. Bd2
{[%clk 00:19:40]} {[%emt 00:07:28]} Bxc3 {[%clk 00:14:31]} {[%emt 00:06:31]} 20.
Bxc3 {[%clk 00:13:58]} {[%emt 00:06:12]} Ne3 {[%clk 00:14:49]} {[%emt
00:00:12]} 21. Qf2 {[%clk 00:12:22]} {[%emt 00:02:06]} Nxf1 {[%clk 00:14:48]}
{[%emt 00:00:32]} 22. Rxf1 {[%clk 00:11:21]} {[%emt 00:01:30]} Ne4 {[%clk
00:14:46]} {[%emt 00:00:31]} 23. Qc2 {[%clk 00:07:35]} {[%emt 00:04:17]} f5
{[%clk 00:14:57]} {[%emt 00:00:18]} 24. b3 {[%clk 00:07:01]} {[%emt 00:01:05]}
bxc4 {[%clk 00:12:43]} {[%emt 00:02:45]} 25. bxc4 {[%clk 00:06:47]} {[%emt
00:00:43]} Rb8 {[%clk 00:10:31]} {[%emt 00:02:42]} 26. Rf3 {[%clk 00:04:57]}
{[%emt 00:02:20]} Qh4 {[%clk 00:07:21]} {[%emt 00:03:39]} 27. h3 {[%clk
00:04:03]} {[%emt 00:01:24]} Re8 {[%clk 00:06:35]} {[%emt 00:01:16]} 28. Ba5
{[%clk 00:02:31]} {[%emt 00:02:03]} Rb8 {[%clk 00:05:36]} {[%emt 00:01:28]} 29.
Bc3 {[%clk 00:02:26]} {[%emt 00:00:36]} h6 {[%clk 00:04:55]} {[%emt 00:01:11]}
30. Ba5 {[%clk 00:01:29]} {[%emt 00:01:27]} Rb7 {[%clk 00:04:39]} {[%emt
00:00:45]} 31. Bc3 {[%clk 00:01:31]} {[%emt 00:00:29]} Nxc3 {[%clk 00:04:28]}
{[%emt 00:00:42]} 32. Qxc3 {[%clk 00:01:46]} {[%emt 00:00:14]} Re7 {[%clk
00:04:55]} {[%emt 00:00:03]} 33. Kd1 {[%clk 00:00:32]} {[%emt 00:01:44]} Re4
{[%clk 00:05:10]} {[%emt 00:00:15]} 34. Qa5 {[%clk 00:00:32]} {[%emt 00:00:31]}
Kh7 {[%clk 00:04:51]} {[%emt 00:00:48]} 35. Qc3 {[%clk 00:30:30]} {[%emt
00:00:32]} 0-1

[Event "Swedish Chess Championship 2021: Sverigemastarklassen"]
[Site "Scandic Helsingborg Nord, Florettgatan 41, Helsingborg, Sweden"]
[Date "2021.07.04"]
[Round "2.3"]
[White "Hillarp Persson, Tiger"]
[Black "Westerberg, Jonathan"]
[Result "1-0"]
[TimeControl "90 minutes for 40 moves + 30 minutes for the rest of the game + 30 seconds per move from move one."]
[WhiteTitle "GM"]
[BlackTitle "GM"]
[WhiteFideId "1700812"]
[BlackFideId "1701754"]
[WhiteElo "2542"]
[BlackElo "2534"]

1. d4 {[%clk 01:30:56]} {[%emt 00:00:02]} e6 {[%clk 01:29:45]} {[%emt
00:01:15]} 2. Nf3 {[%clk 01:29:06]} {[%emt 00:02:20]} d5 {[%clk 01:29:34]}
{[%emt 00:00:41]} 3. Bf4 {[%clk 01:27:54]} {[%emt 00:01:43]} Bd6 {[%clk
01:27:36]} {[%emt 00:02:27]} 4. e3 {[%clk 01:27:49]} {[%emt 00:00:35]} Bxf4
{[%clk 01:23:37]} {[%emt 00:04:28]} 5. exf4 {[%clk 01:28:11]} {[%emt 00:00:09]}
Qd6 {[%clk 01:22:56]} {[%emt 00:01:11]} 6. Qd2 {[%clk 01:21:59]} {[%emt
00:06:42]} Nf6 {[%clk 01:19:01]} {[%emt 00:04:25]} 7. Nc3 {[%clk 01:21:40]}
{[%emt 00:00:49]} Ne4 {[%clk 01:13:23]} {[%emt 00:06:08]} 8. Nxe4 {[%clk
01:21:46]} {[%emt 00:00:24]} dxe4 {[%clk 01:13:49]} {[%emt 00:00:04]} 9. Ne5
{[%clk 01:22:00]} {[%emt 00:00:17]} O-O {[%clk 01:13:06]} {[%emt 00:01:13]} 10.
O-O-O {[%clk 01:18:11]} {[%emt 00:04:17]} b6 {[%clk 01:05:09]} {[%emt
00:08:29]} 11. h4 {[%clk 01:13:49]} {[%emt 00:04:52]} f6 {[%clk 00:54:11]}
{[%emt 00:11:27]} 12. Nc4 {[%clk 01:13:32]} {[%emt 00:00:46]} Qd5 {[%clk
00:51:51]} {[%emt 00:02:51]} 13. Kb1 {[%clk 01:13:49]} {[%emt 00:00:12]} Ba6
{[%clk 00:38:27]} {[%emt 00:13:56]} 14. Ne3 {[%clk 01:11:35]} {[%emt 00:02:43]}
Qd6 {[%clk 00:38:27]} {[%emt 00:00:31]} 15. f5 {[%clk 00:54:27]} {[%emt
00:17:38]} Bxf1 {[%clk 00:37:39]} {[%emt 00:01:17]} 16. Rhxf1 {[%clk 00:54:37]}
{[%emt 00:00:21]} Nd7 {[%clk 00:34:06]} {[%emt 00:04:03]} 17. Qe2 {[%clk
00:41:43]} {[%emt 00:13:23]} exf5 {[%clk 00:20:12]} {[%emt 00:14:25]} 18. Nxf5
{[%clk 00:41:26]} {[%emt 00:00:47]} Qf4 {[%clk 00:20:32]} {[%emt 00:00:10]} 19.
Qb5 {[%clk 00:26:06]} {[%emt 00:15:50]} Rfd8 {[%clk 00:17:01]} {[%emt
00:04:02]} 20. f3 {[%clk 00:22:07]} {[%emt 00:04:29]} c6 {[%clk 00:13:45]}
{[%emt 00:03:47]} 21. Qb3+ {[%clk 00:15:59]} {[%emt 00:06:37]} Kh8 {[%clk
00:11:45]} {[%emt 00:02:30]} 22. fxe4 {[%clk 00:16:18]} {[%emt 00:00:11]} Qc7
{[%clk 00:12:13]} {[%emt 00:00:02]} 23. e5 {[%clk 00:14:31]} {[%emt 00:02:17]}
Nf8 {[%clk 00:10:58]} {[%emt 00:01:46]} 24. exf6 {[%clk 00:13:20]} {[%emt
00:01:40]} gxf6 {[%clk 00:11:27]} {[%emt 00:00:02]} 25. Nh6 {[%clk 00:12:19]}
{[%emt 00:01:30]} Kg7 {[%clk 00:11:46]} {[%emt 00:00:12]} 26. Ng4 {[%clk
00:10:21]} {[%emt 00:02:28]} Nd7 {[%clk 00:11:50]} {[%emt 00:00:27]} 27. Qe3
{[%clk 00:10:04]} {[%emt 00:00:46]} Rg8 {[%clk 00:08:14]} {[%emt 00:04:07]} 28.
Nxf6 {[%clk 00:08:01]} {[%emt 00:02:32]} Nxf6 {[%clk 00:08:42]} {[%emt
00:00:02]} 29. Qg5+ {[%clk 00:08:21]} {[%emt 00:00:10]} Kh8 {[%clk 00:09:11]}
{[%emt 00:00:02]} 30. Qxf6+ {[%clk 00:08:39]} {[%emt 00:00:11]} Qg7 {[%clk
00:09:39]} {[%emt 00:00:02]} 31. Qxc6 {[%clk 00:08:38]} {[%emt 00:00:31]} Qxg2
{[%clk 00:10:07]} {[%emt 00:00:02]} 32. Qf6+ {[%clk 00:08:19]} {[%emt
00:00:48]} Qg7 {[%clk 00:10:14]} {[%emt 00:00:24]} 33. a4 {[%clk 00:08:20]}
{[%emt 00:00:29]} Rad8 {[%clk 00:08:21]} {[%emt 00:02:24]} 34. c3 {[%clk
00:08:07]} {[%emt 00:00:42]} Rd7 {[%clk 00:08:36]} {[%emt 00:00:15]} 35. Ka2
{[%clk 00:08:13]} {[%emt 00:00:24]} Qxf6 {[%clk 00:08:47]} {[%emt 00:00:20]} 36.
Rxf6 {[%clk 00:08:35]} {[%emt 00:00:07]} Rg2 {[%clk 00:09:10]} {[%emt
00:00:07]} 37. Rdf1 {[%clk 00:08:08]} {[%emt 00:00:56]} Kg7 {[%clk 00:09:16]}
{[%emt 00:00:25]} 38. R6f2 {[%clk 00:07:24]} {[%emt 00:01:14]} Rg4 {[%clk
00:07:59]} {[%emt 00:01:47]} 39. Rf4 {[%clk 00:07:46]} {[%emt 00:00:07]} Rg2
{[%clk 00:08:23]} {[%emt 00:00:06]} 40. R1f2 {[%clk 00:06:40]} {[%emt
00:01:36]} Rg1 {[%clk 00:08:46]} {[%emt 00:00:07]} 41. Re2 {[%clk 00:07:00]}
{[%emt 00:00:09]} Rg6 {[%clk 00:08:15]} {[%emt 00:01:01]} 42. Kb3 {[%clk
00:06:38]} {[%emt 00:00:52]} Rgd6 {[%clk 00:08:32]} {[%emt 00:00:15]} 43. Re5
{[%clk 00:06:24]} {[%emt 00:00:43]} Kh6 {[%clk 00:08:26]} {[%emt 00:00:36]} 44.
a5 {[%clk 00:05:46]} {[%emt 00:01:08]} bxa5 {[%clk 00:08:29]} {[%emt 00:00:27]}
45. Rxa5 {[%clk 00:06:05]} {[%emt 00:00:11]} Rb6+ {[%clk 00:08:49]} {[%emt
00:00:10]} 46. Kc2 {[%clk 00:06:03]} {[%emt 00:00:32]} Rdb7 {[%clk 00:09:11]}
{[%emt 00:00:08]} 47. b4 {[%clk 00:06:20]} {[%emt 00:00:13]} Rg6 {[%clk
00:09:21]} {[%emt 00:00:20]} 48. Kb3 {[%clk 00:06:25]} {[%emt 00:00:25]} a6
{[%clk 00:08:04]} {[%emt 00:01:49]} 49. Rff5 {[%clk 00:05:31]} {[%emt
00:01:22]} 1-0

[Event "Swedish Chess Championship 2021: Sverigemastarklassen"]
[Site "Scandic Helsingborg Nord, Florettgatan 41, Helsingborg, Sweden"]
[Date "2021.07.04"]
[Round "2.4"]
[White "Storme, Isak"]
[Black "Seo, Jung Min"]
[Result "0-1"]
[TimeControl "90 minutes for 40 moves + 30 minutes for the rest of the game + 30 seconds per move from move one."]
[WhiteTitle "FM"]
[BlackTitle "IM"]
[WhiteFideId "1728113"]
[BlackFideId "1734687"]
[WhiteElo "2397"]
[BlackElo "2453"]

1. d4 {[%clk 01:30:57]} {[%emt 00:00:02]} d5 {[%clk 01:30:53]} {[%emt
00:00:08]} 2. c4 {[%clk 01:31:10]} {[%emt 00:00:16]} c6 {[%clk 01:31:19]}
{[%emt 00:00:04]} 3. Nc3 {[%clk 01:31:31]} {[%emt 00:00:09]} Nf6 {[%clk
01:31:41]} {[%emt 00:00:09]} 4. e3 {[%clk 01:31:44]} {[%emt 00:00:17]} a6
{[%clk 01:29:41]} {[%emt 00:02:31]} 5. Nf3 {[%clk 01:25:14]} {[%emt 00:06:59]}
Bf5 {[%clk 01:28:19]} {[%emt 00:01:52]} 6. Qb3 {[%clk 01:20:42]} {[%emt
00:05:02]} Ra7 {[%clk 01:28:43]} {[%emt 00:00:06]} 7. Be2 {[%clk 01:16:46]}
{[%emt 00:04:25]} e6 {[%clk 01:28:41]} {[%emt 00:00:32]} 8. O-O {[%clk
01:08:50]} {[%emt 00:08:26]} h6 {[%clk 01:27:50]} {[%emt 00:01:21]} 9. Ne5
{[%clk 01:04:39]} {[%emt 00:04:41]} Bd6 {[%clk 01:26:53]} {[%emt 00:01:28]} 10.
f4 {[%clk 01:00:44]} {[%emt 00:04:24]} O-O {[%clk 01:25:03]} {[%emt 00:02:20]}
11. Bd2 {[%clk 00:55:07]} {[%emt 00:06:06]} Nbd7 {[%clk 01:24:29]} {[%emt
00:01:05]} 12. Bf3 {[%clk 00:48:14]} {[%emt 00:07:23]} Bh7 {[%clk 01:21:19]}
{[%emt 00:03:40]} 13. Kh1 {[%clk 00:41:06]} {[%emt 00:07:38]} Be7 {[%clk
01:07:38]} {[%emt 00:14:10]} 14. Qd1 {[%clk 00:30:24]} {[%emt 00:11:12]} dxc4
{[%clk 01:06:06]} {[%emt 00:02:03]} 15. Nxc4 {[%clk 00:29:47]} {[%emt
00:01:07]} c5 {[%clk 01:03:37]} {[%emt 00:02:59]} 16. Qb3 {[%clk 00:25:45]}
{[%emt 00:04:32]} Bd3 {[%clk 00:59:06]} {[%emt 00:05:01]} 17. Rfe1 {[%clk
00:24:25]} {[%emt 00:01:49]} Bxc4 {[%clk 00:49:33]} {[%emt 00:10:05]} 18. Qxc4
{[%clk 00:24:45]} {[%emt 00:00:10]} b5 {[%clk 00:50:01]} {[%emt 00:00:02]} 19.
Qb3 {[%clk 00:21:38]} {[%emt 00:03:37]} cxd4 {[%clk 00:48:38]} {[%emt
00:01:53]} 20. exd4 {[%clk 00:21:57]} {[%emt 00:00:11]} Nb6 {[%clk 00:48:00]}
{[%emt 00:01:08]} 21. a4 {[%clk 00:19:10]} {[%emt 00:03:16]} Nc4 {[%clk
00:46:39]} {[%emt 00:01:50]} 22. Bc1 {[%clk 00:18:08]} {[%emt 00:01:33]} Na5
{[%clk 00:46:44]} {[%emt 00:00:25]} 23. Qc2 {[%clk 00:15:52]} {[%emt 00:02:45]}
b4 {[%clk 00:46:35]} {[%emt 00:00:41]} 24. Ne4 {[%clk 00:15:40]} {[%emt
00:00:41]} Rd7 {[%clk 00:44:16]} {[%emt 00:02:50]} 25. f5 {[%clk 00:12:16]}
{[%emt 00:03:54]} Nxe4 {[%clk 00:42:20]} {[%emt 00:02:26]} 26. fxe6 {[%clk
00:11:36]} {[%emt 00:01:10]} Rxd4 {[%clk 00:42:03]} {[%emt 00:00:48]} 27. exf7+
{[%clk 00:09:21]} {[%emt 00:02:45]} Rxf7 {[%clk 00:42:19]} {[%emt 00:00:13]} 28.
Bxe4 {[%clk 00:09:24]} {[%emt 00:00:27]} b3 {[%clk 00:42:13]} {[%emt 00:00:36]}
29. Qe2 {[%clk 00:07:02]} {[%emt 00:02:51]} Bb4 {[%clk 00:42:25]} {[%emt
00:00:18]} 30. Bf3 {[%clk 00:02:48]} {[%emt 00:04:44]} Bxe1 {[%clk 00:42:34]}
{[%emt 00:00:22]} 31. Be3 {[%clk 00:02:19]} {[%emt 00:00:59]} Re7 {[%clk
00:40:05]} {[%emt 00:02:59]} 32. Rxe1 {[%clk 00:01:35]} {[%emt 00:01:15]} Nc4
{[%clk 00:40:27]} {[%emt 00:00:08]} 33. Qf2 {[%clk 00:00:42]} {[%emt 00:01:23]}
Nxe3 {[%clk 00:40:52]} {[%emt 00:00:06]} 34. Rxe3 {[%clk 00:01:03]} {[%emt
00:00:09]} Rd1+ {[%clk 00:41:01]} {[%emt 00:00:20]} 0-1